fUSD/lending_fUSD_20240530
["ID","MTS","AMOUNT","RATE_DAILY","PERIOD"]
[328225088,1717073483727,-500.0,0.00032281,7]
[328225089,1717073483737,-500.0,0.00032281,7]
[328225090,1717073483746,-284.3,0.00032281,7]
[328225091,1717073483757,-556.88,0.00032281,7]
[328225092,1717073483767,-1291.87,0.00032281,7]
[328225093,1717073483776,-208.5,0.00032281,7]
[328225094,1717073483786,-500.0,0.00032281,7]
[328225095,1717073483795,-3455.84,0.00032281,7]
[328225096,1717073483805,-500.0,0.00032281,7]
[328225097,1717073483815,-500.0,0.00032281,7]
[328225098,1717073483824,-500.0,0.00032282,7]
[328225099,1717073483833,-583.39,0.00032282,7]
[328225100,1717073483843,-621.24,0.00032282,7]
[328225101,1717073483852,-500.0,0.00032282,7]
[328225102,1717073483861,-500.0,0.00032282,7]
[328225103,1717073483871,-500.0,0.00032282,7]
[328225104,1717073483880,-500.0,0.00032282,7]
[328225105,1717073483889,-500.0,0.00032282,7]
[328225106,1717073483899,-332.2,0.00032282,7]
[328225107,1717073483908,-500.0,0.00032282,7]
[328225108,1717073483917,-500.0,0.00032282,7]
[328225109,1717073483927,-728.3,0.00032282,7]
[328225110,1717073483945,-500.0,0.00032282,7]
[328225111,1717073483959,-500.0,0.00032282,7]
[328225112,1717073483968,-500.0,0.00032282,7]
[328225113,1717073483979,-500.0,0.00032282,7]
[328225114,1717073483988,-500.0,0.00032282,7]
[328225115,1717073483998,-500.0,0.00032282,7]
[328225116,1717073484009,-968.37,0.00032282,7]
[328225117,1717073484019,-500.0,0.00032282,7]
[328225118,1717073484029,-500.0,0.00032282,7]
[328225119,1717073484039,-699.67,0.00032282,7]
[328225120,1717073484048,-500.0,0.00032282,7]
[328225121,1717073484058,-768.83,0.00032282,7]
[328225122,1717073484068,-693.43,0.00032282,7]
[328225123,1717073484078,-500.0,0.00032282,7]
[328225124,1717073484090,-500.0,0.00032282,7]
[328225125,1717073484099,-500.0,0.00032282,7]
[328225126,1717073484109,-500.0,0.00032282,7]
[328225127,1717073484119,-500.0,0.00032282,7]
[328225128,1717073484128,-964.5,0.00032282,7]
[328225129,1717073484138,-500.0,0.00032282,7]
[328225130,1717073484148,-500.0,0.00032282,7]
[328225131,1717073484157,-617.25,0.00032282,7]
[328225132,1717073484167,-500.0,0.00032282,7]
[328225133,1717073484177,-500.0,0.00032282,7]
[328225134,1717073484187,-500.0,0.00032282,7]
[328225135,1717073484198,-500.0,0.00032282,7]
[328225136,1717073484208,-500.0,0.00032282,7]
[328225137,1717073484218,-505.09,0.00032282,7]
[328225138,1717073484227,-310.25,0.00032282,7]
[328225139,1717073484237,-233.05,0.00032282,7]
[328225140,1717073484246,-800.69,0.00032282,7]
[328225141,1717073484258,-500.0,0.00032282,7]
[328225142,1717073484267,-500.0,0.00032282,7]
[328225143,1717073484276,-1212.84,0.00032282,7]
[328225144,1717073484286,-500.0,0.00032282,7]
[328225145,1717073484295,-500.0,0.00032282,7]
[328225146,1717073484305,-500.0,0.00032282,7]
[328225147,1717073484314,-500.0,0.00032282,7]
[328225148,1717073484324,-500.0,0.00032282,7]
[328225149,1717073484333,-500.0,0.00032282,7]
[328225150,1717073484342,-500.0,0.00032282,7]
[328225151,1717073484351,-500.0,0.00032282,7]
[328225152,1717073484361,-1049.93,0.00032282,7]
[328225153,1717073484370,-500.0,0.00032282,7]
[328225154,1717073484380,-500.0,0.00032282,7]
[328225155,1717073484389,-500.0,0.00032282,7]
[328225156,1717073484399,-627.47,0.00032282,7]
[328225157,1717073484409,-500.0,0.00032282,7]
[328225158,1717073484418,-500.0,0.00032282,7]
[328225159,1717073484428,-565.59,0.00032282,7]
[328225160,1717073484438,-2446.16,0.00032282,7]
[328225161,1717073484447,-500.0,0.00032282,7]
[328225162,1717073484456,-1052.8,0.00032282,7]
[328225163,1717073484466,-1007.21,0.00032282,7]
[328225164,1717073484475,-585.6,0.00032282,7]
[328225165,1717073484484,-643.63,0.00032282,7]
[328225166,1717073484493,-500.0,0.00032282,7]
[328225167,1717073484502,-2399.48,0.00032282,7]
[328225168,1717073484512,-517.06,0.00032282,7]
[328225169,1717073484522,-500.0,0.00032282,7]
[328225170,1717073484531,-500.0,0.00032282,7]
[328225171,1717073484541,-778.96,0.00032282,7]
[328225172,1717073484551,-500.0,0.00032282,7]
[328225173,1717073484560,-500.0,0.00032282,7]
[328225174,1717073484570,-500.0,0.00032282,7]
[328225175,1717073484580,-632.76,0.00032282,7]
[328225176,1717073484589,-628.5,0.00032282,7]
[328225177,1717073484599,-500.0,0.00032282,7]
[328225178,1717073484609,-500.0,0.00032282,7]
[328225179,1717073484619,-2286.58,0.00032282,7]
[328225180,1717073484629,-500.0,0.00032282,7]
[328225181,1717073484638,-500.0,0.00032282,7]
[328225182,1717073484647,-500.0,0.00032282,7]
[328225183,1717073484656,-500.0,0.00032283,7]
[328225184,1717073484665,-180.59727295,0.00032301,2]
[328225185,1717073484675,-2500.0,0.0003231,2]
[328225186,1717073484685,-580.3004531,0.00032315,7]
[328225187,1717073484694,-152.0,0.00032316,5]
[328225188,1717073484704,-1765.48,0.00032316,7]
[328225189,1717073484714,-500.0,0.00032316,7]
[328225190,1717073484723,-1538.81,0.00032316,7]
[328225191,1717073484733,-356.95,0.00032316,7]
[328225192,1717073484742,-301.21,0.00032466,2]
[328225193,1717073484752,-240.1603459,0.00032498,4]
[328225194,1717073484762,-207.43016171,0.00032499,4]
[328225195,1717073484771,-500.0,0.00032535,7]
[328225196,1717073484780,-366.9,0.00032535,7]
[328225197,1717073484789,-595.01,0.00032555,7]
[328225198,1717073484799,-500.0,0.00032555,7]
[328225199,1717073484808,-500.0,0.00032555,7]
[328225200,1717073484818,-500.0,0.00032555,7]
[328225201,1717073484827,-533.94,0.00032555,7]
[328225202,1717073484837,-500.0,0.00032555,7]
[328225203,1717073484847,-500.0,0.00032555,7]
[328225204,1717073484856,-500.0,0.00032555,7]
[328225205,1717073484865,-500.0,0.00032555,7]
[328225206,1717073484875,-556.88,0.00032555,7]
[328225207,1717073484885,-1291.87,0.00032555,7]
[328225208,1717073484894,-500.0,0.00032555,7]
[328225209,1717073484904,-3455.84,0.00032555,7]
[328225210,1717073484914,-260.0,0.00032555,7]
[328225211,1717073484924,-375.2,0.00032555,7]
[328225212,1717073484934,-500.0,0.00032556,7]
[328225213,1717073484949,-583.39,0.00032556,7]
[328225214,1717073484958,-500.0,0.00032556,7]
[328225215,1717073484968,-500.0,0.00032556,7]
[328225216,1717073484978,-500.0,0.00032556,7]
[328225217,1717073484988,-500.0,0.00032556,7]
[328225218,1717073484999,-500.0,0.00032556,7]
[328225219,1717073485009,-500.0,0.00032556,7]
[328225220,1717073485021,-154.87,0.00032556,7]
[328225221,1717073485031,-728.3,0.00032556,7]
[328225222,1717073485041,-500.0,0.00032556,7]
[328225223,1717073485051,-213.30922735,0.00032556,7]
[328225224,1717073485060,-500.0,0.00032556,7]
[328225225,1717073485070,-500.0,0.00032556,7]
[328225226,1717073485079,-500.0,0.00032556,7]
[328225227,1717073485088,-500.0,0.00032556,7]
[328225228,1717073485098,-968.37,0.00032556,7]
[328225229,1717073485108,-500.0,0.00032556,7]
[328225230,1717073485118,-500.0,0.00032556,7]
[328225231,1717073485127,-699.67,0.00032556,7]
[328225232,1717073485136,-500.0,0.00032556,7]
[328225233,1717073485146,-768.83,0.00032556,7]
[328225234,1717073485155,-693.43,0.00032556,7]
[328225235,1717073485165,-500.0,0.00032556,7]
[328225236,1717073485174,-500.0,0.00032556,7]
[328225237,1717073485183,-500.0,0.00032556,7]
[328225238,1717073485195,-500.0,0.00032556,7]
[328225239,1717073485205,-500.0,0.00032556,7]
[328225240,1717073485214,-964.5,0.00032556,7]
[328225241,1717073485224,-500.0,0.00032556,7]
[328225242,1717073485233,-500.0,0.00032556,7]
[328225243,1717073485243,-617.25,0.00032556,7]
[328225244,1717073485253,-500.0,0.00032556,7]
[328225245,1717073485263,-500.0,0.00032556,7]
[328225246,1717073485273,-500.0,0.00032556,7]
[328225247,1717073485282,-629.66,0.00032556,7]
[328225248,1717073485292,-472.92,0.00032556,7]
[328225249,1717073485302,-505.09,0.00032556,7]
[328225250,1717073485311,-800.69,0.00032556,7]
[328225251,1717073485321,-500.0,0.00032556,7]
[328225252,1717073485330,-228.3,0.00032556,7]
[328225253,1717073485339,-1212.84,0.00032556,7]
[328225254,1717073485349,-500.0,0.00032556,7]
[328225255,1717073485359,-500.0,0.00032556,7]
[328225256,1717073485368,-500.0,0.00032556,7]
[328225257,1717073485377,-500.0,0.00032556,7]
[328225258,1717073485387,-500.0,0.00032556,7]
[328225259,1717073485396,-500.0,0.00032556,7]
[328225260,1717073485406,-528.95,0.00032556,7]
[328225261,1717073485415,-500.0,0.00032556,7]
[328225262,1717073485424,-1049.93,0.00032556,7]
[328225263,1717073485434,-500.0,0.00032556,7]
[328225264,1717073485444,-454.8,0.00032556,7]
[328225265,1717073485454,-500.0,0.00032556,7]
[328225266,1717073485463,-627.47,0.00032556,7]
[328225267,1717073485473,-500.0,0.00032556,7]
[328225268,1717073485482,-370.45,0.00032556,7]
[328225269,1717073485492,-565.59,0.00032556,7]
[328225270,1717073485501,-2446.16,0.00032556,7]
[328225271,1717073485512,-500.0,0.00032556,7]
[328225272,1717073485521,-1052.8,0.00032556,7]
[328225273,1717073485530,-1007.21,0.00032556,7]
[328225274,1717073485539,-585.6,0.00032556,7]
[328225275,1717073485548,-643.63,0.00032556,7]
[328225276,1717073485557,-500.0,0.00032556,7]
[328225277,1717073485567,-2399.48,0.00032556,7]
[328225278,1717073485672,-500.0,0.00032556,7]
[328225279,1717073485683,-406.98,0.00032556,7]
[328225280,1717073485692,-778.96,0.00032556,7]
[328225281,1717073485702,-351.92,0.00032556,7]
[328225282,1717073485712,-500.0,0.00032556,7]
[328225283,1717073485723,-500.0,0.00032556,7]
[328225284,1717073485732,-632.76,0.00032556,7]
[328225285,1717073485743,-500.0,0.00032556,7]
[328225286,1717073485752,-500.0,0.00032556,7]
[328225287,1717073485764,-2286.58,0.00032556,7]
[328225288,1717073485773,-449.25,0.00032556,7]
[328225289,1717073485783,-500.0,0.00032556,7]
[328225290,1717073485792,-500.0,0.00032556,7]
[328225291,1717073485801,-500.0,0.00032557,7]
[328225292,1717073485812,-1765.48,0.0003259,7]
[328225293,1717073485821,-500.0,0.0003259,7]
[328225294,1717073485830,-1538.81,0.0003259,7]
[328225295,1717073485840,-1660.43,0.00032599,7]
[328225296,1717073485850,-500.0,0.00032599,2]
[328225297,1717073485859,-103494.09105937,0.000326,2]
[328225298,1717073485869,-224193.6571,0.000326,2]
[328225299,1717073485878,-19696.8417,0.000326,2]
[328225300,1717073485888,-151.0,0.000326,7]
[328225301,1717073485897,-239.99713558,0.000326,2]
[328225302,1717073485907,-151.0,0.000326,7]
[328225303,1717073485916,-150.0,0.000326,7]
[328225304,1717073485925,-538.55185444,0.000326,2]
[328225305,1717073485935,-2500.4944198,0.00032627,2]
[328225306,1717073485950,-2500.0,0.0003269,2]
[328225307,1717073485959,-180696.82254432,0.000327,2]
[328225308,1717073485969,-3943.08781183,0.000327,2]
[328225309,1717073485979,-3547.05639728,0.000328,2]
[328225310,1717073485988,-500.0,0.00032809,7]
[328225311,1717073485998,-366.9,0.00032809,7]
[328225312,1717073486009,-1456.03420865,0.0003281,2]
[328225313,1717073486019,-595.01,0.00032829,7]
[328225314,1717073486028,-500.0,0.00032829,7]
[328225315,1717073486037,-500.0,0.00032829,7]
[328225316,1717073486047,-500.0,0.00032829,7]
[328225317,1717073486056,-533.94,0.00032829,7]
[328225318,1717073486065,-500.0,0.00032829,7]
[328225319,1717073486074,-500.0,0.00032829,7]
[328225320,1717073486083,-500.0,0.00032829,7]
[328225321,1717073486092,-500.0,0.00032829,7]
[328225322,1717073486102,-556.88,0.00032829,7]
[328225323,1717073486111,-1291.87,0.00032829,7]
[328225324,1717073486120,-500.0,0.00032829,7]
[328225325,1717073486130,-3455.84,0.00032829,7]
[328225326,1717073486139,-542.04,0.0003283,7]
[328225327,1717073486148,-583.39,0.0003283,7]
[328225328,1717073486157,-500.0,0.0003283,7]
[328225329,1717073486166,-500.0,0.0003283,7]
[328225330,1717073486176,-500.0,0.0003283,7]
[328225331,1717073486185,-500.0,0.0003283,7]
[328225332,1717073486197,-500.0,0.0003283,7]
[328225333,1717073486206,-500.0,0.0003283,7]
[328225334,1717073486215,-728.3,0.0003283,7]
[328225335,1717073486226,-222.53,0.0003283,7]
[328225336,1717073486236,-335.0,0.0003283,7]
[328225337,1717073486247,-359.08,0.0003283,7]
[328225338,1717073486259,-500.0,0.0003283,7]
[328225339,1717073486268,-500.0,0.0003283,7]
[328225340,1717073486278,-968.37,0.0003283,7]
[328225341,1717073486287,-500.0,0.0003283,7]
[328225342,1717073486297,-500.0,0.0003283,7]
[328225343,1717073486306,-699.67,0.0003283,7]
[328225344,1717073486315,-480.1,0.0003283,7]
[328225345,1717073486325,-768.83,0.0003283,7]
[328225346,1717073486335,-693.43,0.0003283,7]
[328225347,1717073486345,-407.0,0.0003283,7]
[328225348,1717073486355,-500.0,0.0003283,7]
[328225349,1717073486365,-500.0,0.0003283,7]
[328225350,1717073486375,-500.0,0.0003283,7]
[328225351,1717073486385,-500.0,0.0003283,7]
[328225352,1717073486394,-964.5,0.0003283,7]
[328225353,1717073486404,-500.0,0.0003283,7]
[328225354,1717073486414,-500.0,0.0003283,7]
[328225355,1717073486424,-617.25,0.0003283,7]
[328225356,1717073486433,-573.96,0.0003283,7]
[328225357,1717073486443,-500.0,0.0003283,7]
[328225358,1717073486452,-500.0,0.0003283,7]
[328225359,1717073486462,-505.09,0.0003283,7]
[328225360,1717073486471,-800.69,0.0003283,7]
[328225361,1717073486480,-500.0,0.0003283,7]
[328225362,1717073486490,-1212.84,0.0003283,7]
[328225363,1717073486500,-623.82,0.0003283,7]
[328225364,1717073486510,-582.63266143,0.0003283,7]
[328225365,1717073486519,-500.0,0.0003283,7]
[328225366,1717073486529,-264.65,0.0003283,7]
[328225367,1717073486538,-500.0,0.0003283,7]
[328225368,1717073486547,-500.0,0.0003283,7]
[328225369,1717073486557,-500.0,0.0003283,7]
[328225370,1717073486566,-1049.93,0.0003283,7]
[328225371,1717073486575,-500.0,0.0003283,7]
[328225372,1717073486585,-500.0,0.0003283,7]
[328225373,1717073486594,-627.47,0.0003283,7]
[328225374,1717073486603,-511.35,0.0003283,7]
[328225375,1717073486614,-565.59,0.0003283,7]
[328225376,1717073486626,-2446.16,0.0003283,7]
[328225377,1717073486637,-500.0,0.0003283,7]
[328225378,1717073486647,-1052.8,0.0003283,7]
[328225379,1717073486657,-1007.21,0.0003283,7]
[328225380,1717073486666,-585.6,0.0003283,7]
[328225381,1717073486675,-643.63,0.0003283,7]
[328225382,1717073486684,-275.46,0.0003283,7]
[328225383,1717073486694,-2399.48,0.0003283,7]
[328225384,1717073486703,-500.0,0.0003283,7]
[328225385,1717073486713,-778.96,0.0003283,7]
[328225386,1717073486722,-500.0,0.0003283,7]
[328225387,1717073486731,-500.0,0.0003283,7]
[328225388,1717073486741,-632.76,0.0003283,7]
[328225389,1717073486750,-500.0,0.0003283,7]
[328225390,1717073486760,-500.0,0.0003283,7]
[328225391,1717073486770,-2286.58,0.0003283,7]
[328225392,1717073486779,-500.0,0.0003283,7]
[328225393,1717073486788,-500.0,0.0003283,7]
[328225394,1717073486797,-500.0,0.00032831,7]
[328225395,1717073486806,-153.45610271,0.00032852,7]
[328225396,1717073486816,-1765.48,0.00032864,7]
[328225397,1717073486825,-500.0,0.00032864,7]
[328225398,1717073486834,-1538.81,0.00032864,7]
[328225399,1717073486844,-151.0,0.00032864,7]
[328225400,1717073486853,-169.35,0.00032876,2]
[328225401,1717073486862,-10001.24177888,0.00032877,2]
[328225402,1717073487095,-500.0,0.00029267,7]
[328225403,1717073487105,-500.0,0.00029268,7]
[328225404,1717073487116,-500.0,0.00029268,7]
[328225405,1717073487125,-500.0,0.00029542,7]
[328225406,1717073487135,-500.0,0.00029542,7]
[328225407,1717073487144,-500.0,0.0003009,7]
[328225408,1717073487153,-369.0,0.00030364,7]
[328225409,1717073487164,-131.0,0.00030364,7]
[328225410,1717073487174,-500.0,0.00032008,7]
[328225411,1717073487183,-500.0,0.00032282,7]
[328225412,1717073487192,-500.0,0.00032556,7]
[328225413,1717073487201,-500.0,0.0003283,7]
[328225414,1717073487210,-6602.24188,0.00032877,2]
[328225415,1717073487222,-7516.94634112,0.00032877,2]
[328225416,1717073487231,-28370.38,0.00032877,2]
[328225417,1717073487240,-323.15,0.00032877,2]
[328225418,1717073487249,-169.36,0.00032886,2]
[328225419,1717073487261,-169.36,0.00032886,2]
[328225420,1717073487270,-169.36,0.00032886,2]
[328225421,1717073487279,-169.36,0.00032886,2]
[328225422,1717073487288,-169.36,0.00032886,2]
[328225423,1717073487297,-22978.04182867,0.00032887,2]
[328225424,1717073487306,-1187.05626589,0.000329,4]
[328225425,1717073487315,-2346.58649052,0.000329,4]
[328225426,1717073487325,-239.99713556,0.000329,2]
[328225427,1717073487334,-169.35,0.00032917,2]
[328225428,1717073487436,-953.31210102,0.00032925,5]
[328225429,1717073487445,-953.31210099,0.00032925,5]
[328225430,1717073487454,-953.31210099,0.00032925,5]
[328225431,1717073487463,-953.31210099,0.00032925,5]
[328225432,1717073487472,-953.31210099,0.00032925,5]
[328225433,1717073487480,-953.31210099,0.00032925,5]
[328225434,1717073487490,-953.31210099,0.00032925,5]
[328225435,1717073487498,-953.31210099,0.00032925,5]
[328225436,1717073487507,-953.31210099,0.00032925,5]
[328225437,1717073487518,-953.31210099,0.00032925,5]
[328225438,1717073487527,-953.31210099,0.00032925,5]
[328225439,1717073487536,-953.31210099,0.00032925,5]
[328225440,1717073487545,-953.31210099,0.00032925,5]
[328225441,1717073487554,-2346.58649045,0.00032927,4]
[328225442,1717073487563,-953.31210099,0.0003293,5]
[328225443,1717073487572,-3943.08781182,0.0003295,2]
[328225444,1717073487581,-2346.58649045,0.00032955,4]
[328225445,1717073487590,-2346.58649045,0.00032982,5]
[328225446,1717073487599,-150.08204805,0.00032985,7]
[328225447,1717073487608,-547.0,0.00032986,4]
[328225448,1717073487617,-1804.28,0.00032997,2]
[328225449,1717073487627,-1804.28,0.00032997,2]
[328225450,1717073487636,-1804.28,0.00032997,2]
[328225451,1717073487645,-1804.28,0.00032997,2]
[328225452,1717073487654,-1804.28,0.00032997,2]
[328225453,1717073487663,-1804.28,0.00032997,2]
[328225454,1717073487673,-1804.28,0.00032997,2]
[328225455,1717073487683,-1804.28,0.00032997,2]
[328225456,1717073487693,-1804.28,0.00032997,2]
[328225457,1717073487703,-1804.28,0.00032997,2]
[328225458,1717073487714,-1804.28,0.00032997,2]
[328225459,1717073487723,-1804.28,0.00032997,2]
[328225460,1717073487732,-1804.28,0.00032997,2]
[328225461,1717073487742,-1804.28,0.00032997,2]
[328225462,1717073487753,-1804.28,0.00032997,2]
[328225463,1717073487765,-1804.28,0.00032997,2]
[328225464,1717073487774,-1804.28,0.00032997,2]
[328225465,1717073487784,-1804.28,0.00032997,2]
[328225466,1717073487793,-1804.28,0.00032997,2]
[328225467,1717073487804,-1804.28,0.00032997,2]
[328225468,1717073487814,-1804.28,0.00032997,2]
[328225469,1717073487823,-466.13740711,0.00032997,2]
[328225470,1717073487835,-1338.14259289,0.00032997,2]
[328225471,1717073487845,-861.85740711,0.00032997,2]
[328225472,1717073487857,-883.55015913,0.00032997,2]
[328225473,1717073487904,-500.0,0.00029267,7]
[328225474,1717073487913,-500.0,0.00029541,7]
[328225475,1717073487922,-500.0,0.00029816,7]
[328225476,1717073487931,-500.0,0.00029816,7]
[328225477,1717073487945,-58.87243376,0.00032997,2]
[328225478,1717073487954,-1452.18416624,0.00032997,2]
[328225479,1717073487965,-352.25771374,0.00032997,2]
[328225480,1717073487974,-156.03263173,0.00032998,4]
[328225481,1717073487985,-267.96249102,0.00032998,4]
[328225482,1717073487994,-1063.40945064,0.00032998,4]
[328225483,1717073488003,-155.0,0.00032998,4]
[328225484,1717073488015,-1031.54638727,0.00032998,4]
[328225485,1717073493006,500.0,0.00043836,14]
[328225486,1717073518266,1024.6997434,0.00042959,10]
[328225487,1717073537592,1528.97290063,0.00042729,10]
[328225488,1717073540680,150.08204805,0.00045365,30]
[328225489,1717073541818,150.08204805,0.00045805,30]
[328225490,1717073550115,154.08593147,0.0004429,30]
[328225491,1717073550212,155.91,0.00013973,2]
[328225492,1717073550841,150.61262183,0.00042011,30]
[328225493,1717073551916,153.07621504,0.00044969,30]
[328225494,1717073554725,154.03698948,0.00042777,30]
[328225495,1717073554804,151.0,0.00039,14]
[328225496,1717073555131,151.0,0.00043,14]
[328225497,1717073605038,500.0,0.00033945,21]
[328225498,1717073605243,200.0,0.00040338,120]
[328225499,1717073616084,438.1390337,0.00030277,10]
[328225500,1717073621087,438.1390337,0.00030695,10]
[328225501,1717073626120,438.1390337,0.00031112,10]
[328225502,1717073631100,438.1390337,0.0003153,10]
[328225503,1717073636093,438.1390337,0.00031947,10]
[328225504,1717073641319,438.1390337,0.00032365,10]
[328225505,1717073646080,438.1390337,0.00032782,10]
[328225506,1717073651084,438.1390337,0.000332,10]
[328225507,1717073738893,25000.0,0.00044996,40]
[328225508,1717073738928,25000.0,0.00044996,40]
[328225509,1717073738959,25000.0,0.00044996,40]
[328225510,1717073739003,25000.0,0.00044996,40]
[328225511,1717073739069,25000.0,0.00044996,40]
[328225512,1717073739102,25000.0,0.00044996,40]
[328225513,1717073739134,25000.0,0.00044996,40]
[328225514,1717073739164,23110.33305426,0.00044996,40]
[328225515,1717073739219,25000.0,0.00044996,40]
[328225516,1717073739279,25000.0,0.00044996,40]
[328225517,1717073739329,25000.0,0.00044996,40]
[328225518,1717073739517,25000.0,0.00044996,40]
[328225519,1717073752479,181.51,0.00028628,120]
[328225520,1717073759794,12635.56093444,0.00046,120]
[328225521,1717073829155,2040.0,0.000427,92]
[328225522,1717073829345,4490.2,0.0004591,111]
[328225523,1717073838340,153.45610271,0.00045851,30]
[328225524,1717073845893,166.49966666,0.00041069,30]
[328225525,1717073849111,152.64927983,0.00042479,30]
[328225526,1717073852962,150.61262183,0.00040342,30]
[328225527,1717073853918,154.03698949,0.00042438,30]
[328225528,1717073854109,150.61262183,0.00045476,30]
[328225529,1717073855006,157.96322361,0.0004019,30]
[328225530,1717073861288,193.80470629,0.00041005,30]
[328225531,1717073861968,315.53399,0.0004266,15]
[328225532,1717073862461,315.53399,0.0004516,26]
[328225533,1717074136354,175.25561348,0.00030176,10]
[328225534,1717074141275,175.25561348,0.00031184,10]
[328225535,1717074144646,193.80470629,0.00044648,30]
[328225536,1717074146452,175.25561348,0.00032192,10]
[328225537,1717074151297,175.25561348,0.000332,10]
[328225538,1717074152917,154.03698947,0.00040342,30]
[328225539,1717074195589,4096.38587913,0.00033972,10]
[328225540,1717074201587,3500.0,0.00033972,10]
[328225541,1717074212618,833.33333,0.0004266,15]
[328225542,1717074212678,833.33334,0.0004516,26]
[328225543,1717074308682,500.0,0.00045,120]
[328225544,1717074319856,245.93,0.00045,120]
[328225545,1717074403556,151.0,0.00039,14]
[328225546,1717074403947,151.0,0.00043,14]
[328225547,1717074409402,1000.0,0.00046575,120]
[328225548,1717074410932,1000.0,0.00046575,120]
[328225549,1717074443574,150.61262183,0.00042444,30]
[328225550,1717074444150,150.61262183,0.00043163,30]
[328225551,1717074444392,193.80470629,0.00042384,30]
[328225552,1717074444896,150.61262183,0.00045032,30]
[328225553,1717074452611,151.0,0.00039,14]
[328225554,1717074453184,172.716181,0.00043,14]
[328225555,1717074463272,5900.0,0.00032998,10]
[328225556,1717074481573,1212017.62,0.00043,15]
[328225557,1717074500272,1520.44206441,0.00043,15]
[328225562,1717074521478,151.0,0.00039362,14]
[328225563,1717074521864,151.0,0.00043,14]
[328225579,1717074570709,162.287136,0.00039,14]
[328225580,1717074572060,162.287136,0.00043,14]
[328225581,1717074575166,162.287136,0.00039,14]
[328225582,1717074575507,162.287136,0.00043,14]
[328225587,1717074588082,210.35599,0.0004266,15]
[328225588,1717074588900,210.35599,0.0004516,26]
[328225589,1717074601420,238.32802524,0.000389,11]
[328225593,1717074615260,1000.0,0.0004611,90]
[328225600,1717074631916,-268.73072841,0.00017206,2]
[328225601,1717074631926,-854.48115241,0.00017206,2]
[328225602,1717074631936,-405.13915163,0.00017206,2]
[328225603,1717074632098,-3244.55441955,0.00017206,2]
[328225604,1717074632110,-534.05985224,0.00017206,2]
[328225605,1717074632284,-6358.02923912,0.00017206,2]
[328225606,1717074632294,-4283.92078764,0.00017207,2]
[328225607,1717074632303,-2458.95382721,0.0001726,2]
[328225609,1717074637874,-523.05699255,0.0001726,2]
[328225612,1717074637884,-1637.0,0.000261,3]
[328225614,1717074637893,-233.97,0.00026469,2]
[328225616,1717074637902,-499.99,0.00026469,2]
[328225619,1717074637911,-510.66,0.00027859,2]
[328225621,1717074637920,-250.0,0.00027939,2]
[328225623,1717074637932,-23890.0,0.00027995,2]
[328225624,1717074637941,-167.56,0.00028142,2]
[328225625,1717074637950,-440.0,0.00028176,2]
[328225626,1717074637959,-1912.56570009,0.00028459,2]
[328225627,1717074637968,-233.97,0.00028733,2]
[328225628,1717074637978,-167.84,0.00028792,2]